lending/lending_fUSD_20241211
["ID","MTS","AMOUNT","RATE_DAILY","PERIOD"]
[345050222,1733951442816,-500.0,0.00011099,2]
[345050223,1733951442827,-2000.0,0.00011099,2]
[345050224,1733951442837,-500.0,0.00011099,2]
[345050225,1733951442848,-500.0,0.00011099,2]
[345050226,1733951442859,-300.36,0.00011099,2]
[345050227,1733951442870,-200.0,0.00011099,2]
[345050228,1733951442880,-151.9,0.00011099,2]
[345050229,1733951442892,-1203.77,0.00011099,2]
[345050230,1733951442903,-1203.77,0.00011099,2]
[345050231,1733951442914,-1203.77,0.00011099,2]
[345050232,1733951442924,-1203.77,0.00011099,2]
[345050233,1733951442935,-1203.77,0.00011099,2]
[345050234,1733951442945,-1203.77,0.00011099,2]
[345050235,1733951442956,-1203.77,0.00011099,2]
[345050236,1733951442967,-1203.77,0.00011099,2]
[345050237,1733951442978,-1203.77,0.00011099,2]
[345050238,1733951442989,-1203.77,0.00011099,2]
[345050239,1733951442999,-1203.77,0.00011099,2]
[345050240,1733951443009,-1203.77,0.00011099,2]
[345050241,1733951443020,-1203.77,0.00011099,2]
[345050242,1733951443030,-1203.77,0.00011099,2]
[345050243,1733951443041,-1203.77,0.00011099,2]
[345050244,1733951443051,-1203.77,0.00011099,2]
[345050245,1733951443063,-1203.77,0.00011099,2]
[345050246,1733951443074,-1203.77,0.00011099,2]
[345050247,1733951443084,-1203.77,0.00011099,2]
[345050248,1733951443094,-1203.97315117,0.00011099,2]
[345050249,1733951443105,-1524.29,0.00011099,2]
[345050250,1733951443115,-1524.29,0.00011099,2]
[345050251,1733951443126,-1524.29,0.00011099,2]
[345050252,1733951443136,-1524.29,0.00011099,2]
[345050253,1733951443150,-1524.29,0.00011099,2]
[345050254,1733951443160,-1524.29,0.00011099,2]
[345050255,1733951443171,-1524.29,0.00011099,2]
[345050256,1733951443187,-1524.29,0.00011099,2]
[345050257,1733951443198,-1524.29,0.00011099,2]
[345050258,1733951443208,-1524.29,0.00011099,2]
[345050259,1733951443219,-1524.29,0.00011099,2]
[345050261,1733951443230,-1524.29,0.00011099,2]
[345050263,1733951443240,-1524.29,0.00011099,2]
[345050264,1733951443251,-1524.29,0.00011099,2]
[345050265,1733951443558,-1524.29,0.00011099,2]
[345050266,1733951443584,-1524.29,0.00011099,2]
[345050267,1733951443603,-1524.29,0.00011099,2]
[345050268,1733951443613,-1524.29,0.00011099,2]
[345050269,1733951443623,-1524.29,0.00011099,2]
[345050270,1733951443632,-1524.31761874,0.00011099,2]
[345050271,1733951443641,-732.88,0.00011099,2]
[345050272,1733951443651,-732.88,0.00011099,2]
[345050273,1733951443661,-732.88,0.00011099,2]
[345050274,1733951443671,-732.88,0.00011099,2]
[345050275,1733951443681,-732.88,0.00011099,2]
[345050276,1733951443690,-732.88,0.00011099,2]
[345050277,1733951443700,-732.88,0.00011099,2]
[345050278,1733951443709,-732.88,0.00011099,2]
[345050279,1733951443719,-732.88,0.00011099,2]
[345050280,1733951443728,-732.88,0.00011099,2]
[345050281,1733951443738,-732.88,0.00011099,2]
[345050282,1733951443748,-732.88,0.00011099,2]
[345050283,1733951443757,-732.88,0.00011099,2]
[345050284,1733951443767,-732.88,0.00011099,2]
[345050285,1733951443776,-732.88,0.00011099,2]
[345050286,1733951443786,-732.88,0.00011099,2]
[345050287,1733951443795,-732.88,0.00011099,2]
[345050288,1733951443805,-732.88,0.00011099,2]
[345050289,1733951443818,-732.88,0.00011099,2]
[345050290,1733951443828,-732.88,0.00011099,2]
[345050291,1733951443838,-732.95997224,0.00011099,2]
[345050292,1733951443848,-940.69,0.00011099,2]
[345050293,1733951443859,-940.69,0.00011099,2]
[345050294,1733951443868,-940.69,0.00011099,2]
[345050295,1733951443878,-940.69,0.00011099,2]
[345050296,1733951443888,-940.69,0.00011099,2]
[345050297,1733951443897,-940.69,0.00011099,2]
[345050298,1733951443907,-940.69,0.00011099,2]
[345050299,1733951443916,-940.69,0.00011099,2]
[345050300,1733951443926,-940.69,0.00011099,2]
[345050301,1733951443935,-940.69,0.00011099,2]
[345050302,1733951443945,-940.69,0.00011099,2]
[345050303,1733951443954,-940.69,0.00011099,2]
[345050304,1733951443964,-940.69,0.00011099,2]
[345050305,1733951443973,-940.69,0.00011099,2]
[345050306,1733951443982,-940.69,0.00011099,2]
[345050307,1733951443991,-940.69,0.00011099,2]
[345050308,1733951444001,-940.69,0.00011099,2]
[345050309,1733951444010,-940.69,0.00011099,2]
[345050310,1733951444020,-940.90592827,0.00011099,2]
[345050311,1733951444029,-798.1,0.00011099,2]
[345050312,1733951444038,-798.1,0.00011099,2]
[345050313,1733951444047,-798.1,0.00011099,2]
[345050314,1733951444056,-798.1,0.00011099,2]
[345050315,1733951444066,-798.1,0.00011099,2]
[345050316,1733951444075,-798.1,0.00011099,2]
[345050317,1733951444085,-798.1,0.00011099,2]
[345050318,1733951444094,-798.1,0.00011099,2]
[345050319,1733951444104,-798.1,0.00011099,2]
[345050320,1733951444113,-798.1,0.00011099,2]
[345050321,1733951444122,-798.1,0.00011099,2]
[345050322,1733951444132,-798.1,0.00011099,2]
[345050323,1733951444141,-798.1,0.00011099,2]
[345050324,1733951444150,-798.1,0.00011099,2]
[345050325,1733951444160,-798.1,0.00011099,2]
[345050326,1733951444169,-798.1,0.00011099,2]
[345050327,1733951444179,-798.1,0.00011099,2]
[345050328,1733951444188,-798.1,0.00011099,2]
[345050329,1733951444197,-798.1882522,0.00011099,2]
[345050330,1733951444207,-500.0,0.00011099,2]
[345050331,1733951444216,-500.0,0.00011099,2]
[345050332,1733951444226,-500.0,0.00011099,2]
[345050333,1733951444235,-500.0,0.00011099,2]
[345050334,1733951444244,-500.0,0.00011099,2]
[345050335,1733951444254,-500.0,0.00011099,2]
[345050336,1733951444263,-500.0,0.00011099,2]
[345050337,1733951444272,-500.0,0.00011099,2]
[345050338,1733951444282,-500.0,0.00011099,2]
[345050339,1733951444291,-500.0,0.00011099,2]
[345050340,1733951444300,-333.8,0.00011099,2]
[345050341,1733951444310,-1699.91,0.00011099,2]
[345050342,1733951444319,-1699.91,0.00011099,2]
[345050343,1733951444328,-1699.91,0.00011099,2]
[345050344,1733951444338,-1699.91,0.00011099,2]
[345050345,1733951444347,-1699.91,0.00011099,2]
[345050346,1733951444356,-1699.91,0.00011099,2]
[345050347,1733951444366,-1699.91,0.00011099,2]
[345050348,1733951444375,-500.0,0.00011099,2]
[345050349,1733951444385,-1699.91,0.00011099,2]
[345050350,1733951444395,-500.0,0.00011099,2]
[345050351,1733951444404,-1699.91,0.00011099,2]
[345050352,1733951444413,-500.0,0.00011099,2]
[345050353,1733951444422,-1699.91,0.00011099,2]
[345050354,1733951444432,-1699.91,0.00011099,2]
[345050355,1733951444441,-549.62,0.00011099,2]
[345050356,1733951444450,-1699.91,0.00011099,2]
[345050357,1733951444459,-1699.91,0.00011099,2]
[345050358,1733951444469,-1699.91,0.00011099,2]
[345050359,1733951444479,-1699.91,0.00011099,2]
[345050360,1733951444488,-1699.91,0.00011099,2]
[345050361,1733951444497,-1699.91,0.00011099,2]
[345050362,1733951444507,-1699.91,0.00011099,2]
[345050363,1733951444517,-1699.91,0.00011099,2]
[345050364,1733951444526,-1699.932368,0.00011099,2]
[345050365,1733951444535,-1118.32,0.00011099,2]
[345050366,1733951444545,-1118.32,0.00011099,2]
[345050367,1733951444554,-827.83,0.00011099,2]
[345050368,1733951444564,-1118.32,0.00011099,2]
[345050369,1733951444573,-827.83,0.00011099,2]
[345050370,1733951444583,-1118.32,0.00011099,2]
[345050371,1733951444593,-827.83,0.00011099,2]
[345050372,1733951444603,-1118.32,0.00011099,2]
[345050373,1733951444612,-827.83,0.00011099,2]
[345050374,1733951444622,-1118.32,0.00011099,2]
[345050375,1733951444631,-827.83,0.00011099,2]
[345050376,1733951444640,-1118.32,0.00011099,2]
[345050377,1733951444650,-827.83,0.00011099,2]
[345050378,1733951444659,-1118.32,0.00011099,2]
[345050379,1733951444668,-827.83,0.00011099,2]
[345050380,1733951444678,-1118.32,0.00011099,2]
[345050381,1733951444687,-827.83,0.00011099,2]
[345050382,1733951444697,-1118.32,0.00011099,2]
[345050383,1733951444706,-827.83,0.00011099,2]
[345050384,1733951444715,-1118.32,0.00011099,2]
[345050385,1733951444725,-827.83,0.00011099,2]
[345050386,1733951444735,-1118.32,0.00011099,2]
[345050387,1733951444744,-827.83,0.00011099,2]
[345050388,1733951444754,-1118.32,0.00011099,2]
[345050389,1733951444763,-827.83,0.00011099,2]
[345050390,1733951444774,-1118.32,0.00011099,2]
[345050391,1733951444783,-827.83,0.00011099,2]
[345050392,1733951444793,-1118.32,0.00011099,2]
[345050393,1733951444803,-827.83,0.00011099,2]
[345050394,1733951444815,-1118.32,0.00011099,2]
[345050395,1733951444824,-827.83,0.00011099,2]
[345050396,1733951444834,-1118.32,0.00011099,2]
[345050397,1733951444843,-827.83,0.00011099,2]
[345050398,1733951444853,-1118.32,0.00011099,2]
[345050399,1733951444862,-827.83,0.00011099,2]
[345050400,1733951444873,-1118.4061835,0.00011099,2]
[345050401,1733951444883,-827.83,0.00011099,2]
[345050402,1733951444893,-827.83,0.00011099,2]
[345050403,1733951444903,-828.02,0.00011099,2]
[345050404,1733951444912,-627.43,0.00011099,2]
[345050405,1733951444921,-627.43,0.00011099,2]
[345050406,1733951444931,-627.43,0.00011099,2]
[345050407,1733951444941,-627.43,0.00011099,2]
[345050408,1733951444951,-627.43,0.00011099,2]
[345050409,1733951444960,-627.43,0.00011099,2]
[345050410,1733951444970,-627.43,0.00011099,2]
[345050411,1733951444979,-627.43,0.00011099,2]
[345050412,1733951444989,-627.43,0.00011099,2]
[345050413,1733951444998,-627.43,0.00011099,2]
[345050414,1733951445008,-627.43,0.00011099,2]
[345050415,1733951445018,-627.43,0.00011099,2]
[345050416,1733951445028,-627.43,0.00011099,2]
[345050417,1733951445037,-627.43,0.00011099,2]
[345050418,1733951445047,-627.43,0.00011099,2]
[345050419,1733951445057,-627.43,0.00011099,2]
[345050420,1733951445067,-627.43,0.00011099,2]
[345050421,1733951445076,-627.43,0.00011099,2]
[345050422,1733951445086,-627.43,0.00011099,2]
[345050423,1733951445095,-627.43,0.00011099,2]
[345050424,1733951445105,-500.0,0.00011099,2]
[345050425,1733951445115,-500.0,0.00011099,2]
[345050426,1733951445124,-500.0,0.00011099,2]
[345050427,1733951445134,-500.0,0.00011099,2]
[345050428,1733951445143,-500.0,0.00011099,2]
[345050429,1733951445153,-500.0,0.00011099,2]
[345050430,1733951445163,-500.0,0.00011099,2]
[345050431,1733951445173,-500.0,0.00011099,2]
[345050432,1733951445182,-500.0,0.00011099,2]
[345050433,1733951445192,-500.0,0.00011099,2]
[345050434,1733951445201,-500.0,0.00011099,2]
[345050435,1733951445211,-500.0,0.00011099,2]
[345050436,1733951445221,-500.0,0.00011099,2]
[345050437,1733951445230,-500.0,0.00011099,2]
[345050438,1733951445239,-500.0,0.00011099,2]
[345050439,1733951445248,-500.0,0.00011099,2]
[345050440,1733951445258,-500.0,0.00011099,2]
[345050441,1733951445267,-500.0,0.00011099,2]
[345050442,1733951445276,-156.48,0.00011099,2]
[345050443,1733951445286,-1150.57,0.00011099,2]
[345050444,1733951445296,-1150.57,0.00011099,2]
[345050445,1733951445305,-1150.57,0.00011099,2]
[345050446,1733951445314,-1150.57,0.00011099,2]
[345050447,1733951445323,-1150.57,0.00011099,2]
[345050448,1733951445333,-1150.57,0.00011099,2]
[345050449,1733951445342,-1150.57,0.00011099,2]
[345050450,1733951445350,-1150.57,0.00011099,2]
[345050451,1733951445359,-1150.57,0.00011099,2]
[345050452,1733951445370,-1150.57,0.00011099,2]
[345050453,1733951445379,-1150.57,0.00011099,2]
[345050454,1733951445390,-1150.57,0.00011099,2]
[345050455,1733951445413,-1150.57,0.00011099,2]
[345050456,1733951445422,-1150.57,0.00011099,2]
[345050457,1733951445431,-1150.57,0.00011099,2]
[345050458,1733951445442,-1150.57,0.00011099,2]
[345050459,1733951445453,-1150.57,0.00011099,2]
[345050460,1733951445463,-1150.57,0.00011099,2]
[345050461,1733951445473,-1150.57,0.00011099,2]
[345050462,1733951445482,-1150.72262087,0.00011099,2]
[345050463,1733951445492,-2951.11025,0.00011099,2]
[345050464,1733951445502,-500.0,0.00011099,2]
[345050466,1733951445511,-500.0,0.00011099,2]
[345050467,1733951445520,-500.0,0.00011099,2]
[345050468,1733951445530,-219.23,0.00011099,2]
[345050469,1733951445541,-1638.94,0.00011099,2]
[345050470,1733951445551,-1638.94,0.00011099,2]
[345050471,1733951445562,-1638.94,0.00011099,2]
[345050472,1733951445572,-1638.94,0.00011099,2]
[345050473,1733951445582,-1638.94,0.00011099,2]
[345050474,1733951445592,-1638.94,0.00011099,2]
[345050475,1733951445603,-1638.94,0.00011099,2]
[345050476,1733951445612,-1638.94,0.00011099,2]
[345050477,1733951445622,-1638.94,0.00011099,2]
[345050478,1733951445631,-1638.94,0.00011099,2]
[345050479,1733951445641,-1638.94,0.00011099,2]
[345050480,1733951445652,-1638.94,0.00011099,2]
[345050481,1733951445662,-1638.94,0.00011099,2]
[345050482,1733951445672,-1638.94,0.00011099,2]
[345050483,1733951445682,-1638.94,0.00011099,2]
[345050484,1733951445691,-1638.94,0.00011099,2]
[345050485,1733951445701,-1638.94,0.00011099,2]
[345050486,1733951445709,-1638.94,0.00011099,2]
[345050487,1733951445719,-1638.94,0.00011099,2]
[345050488,1733951445729,-1638.95827162,0.00011099,2]
[345050489,1733951445738,-763.08,0.00011099,2]
[345050490,1733951445748,-763.08,0.00011099,2]
[345050491,1733951445758,-763.08,0.00011099,2]
[345050492,1733951445768,-763.08,0.00011099,2]
[345050493,1733951445778,-763.08,0.00011099,2]
[345050494,1733951445788,-763.08,0.00011099,2]
[345050495,1733951445798,-763.08,0.00011099,2]
[345050496,1733951445809,-763.08,0.00011099,2]
[345050497,1733951445821,-763.08,0.00011099,2]
[345050498,1733951445831,-763.08,0.00011099,2]
[345050499,1733951445841,-763.08,0.00011099,2]
[345050500,1733951445851,-763.08,0.00011099,2]
[345050501,1733951445861,-763.08,0.00011099,2]
[345050502,1733951445870,-763.08,0.00011099,2]
[345050503,1733951445880,-763.08,0.00011099,2]
[345050504,1733951445890,-763.08,0.00011099,2]
[345050505,1733951445908,-763.08,0.00011099,2]
[345050506,1733951445917,-763.08,0.00011099,2]
[345050507,1733951445927,-763.08,0.00011099,2]
[345050508,1733951445936,-763.15482583,0.00011099,2]
[345050509,1733951445946,-500.0,0.00011099,2]
[345050510,1733951445956,-500.0,0.00011099,2]
[345050511,1733951445966,-500.0,0.00011099,2]
[345050512,1733951445975,-473.97,0.00011099,2]
[345050513,1733951445984,-500.0,0.00011099,2]
[345050514,1733951445994,-511.13,0.00011099,2]
[345050515,1733951446004,-3876.93,0.00011099,2]
[345050516,1733951446014,-3876.93,0.00011099,2]
[345050517,1733951446024,-3876.93,0.00011099,2]
[345050518,1733951446033,-3876.93,0.00011099,2]
[345050519,1733951446043,-3876.93,0.00011099,2]
[345050520,1733951446053,-3876.93,0.00011099,2]
[345050521,1733951446063,-3876.93,0.00011099,2]
[345050522,1733951446072,-3876.93,0.00011099,2]
[345050523,1733951446082,-3876.93,0.00011099,2]
[345050524,1733951446092,-3876.93,0.00011099,2]
[345050525,1733951446101,-3876.93,0.00011099,2]
[345050526,1733951446111,-3876.93,0.00011099,2]
[345050527,1733951446120,-500.0,0.00011099,2]
[345050528,1733951446130,-3876.93,0.00011099,2]
[345050529,1733951446139,-500.0,0.00011099,2]
[345050530,1733951446149,-3876.93,0.00011099,2]
[345050531,1733951446158,-500.0,0.00011099,2]
[345050532,1733951446168,-3876.93,0.00011099,2]
[345050534,1733951446177,-500.0,0.00011099,2]
[345050535,1733951446188,-3876.93,0.00011099,2]
[345050536,1733951446197,-615.92,0.00011099,2]
[345050537,1733951446207,-3876.93,0.00011099,2]
[345050538,1733951446216,-3876.93,0.00011099,2]
[345050539,1733951446226,-3876.93,0.00011099,2]
[345050540,1733951446236,-3877.00069985,0.00011099,2]
[345050541,1733951446245,-200.0,0.00011099,2]
[345050542,1733951446255,-714.26,0.00011099,2]
[345050543,1733951446265,-714.26,0.00011099,2]
[345050544,1733951446275,-714.26,0.00011099,2]
[345050545,1733951446285,-714.26,0.00011099,2]
[345050546,1733951446294,-714.26,0.00011099,2]
[345050547,1733951446304,-714.26,0.00011099,2]
[345050548,1733951446314,-714.26,0.00011099,2]
[345050549,1733951446323,-714.26,0.00011099,2]
[345050550,1733951446333,-714.26,0.00011099,2]
[345050551,1733951446343,-714.26,0.00011099,2]
[345050552,1733951446353,-714.26,0.00011099,2]
[345050553,1733951446363,-714.26,0.00011099,2]
[345050554,1733951446372,-714.26,0.00011099,2]
[345050555,1733951446382,-714.26,0.00011099,2]
[345050556,1733951446392,-714.26,0.00011099,2]
[345050557,1733951446402,-714.26,0.00011099,2]
[345050558,1733951446412,-714.26,0.00011099,2]
[345050559,1733951446422,-2292.83,0.00011099,2]
[345050560,1733951446431,-714.26,0.00011099,2]
[345050561,1733951446441,-2292.83,0.00011099,2]
[345050562,1733951446451,-714.26,0.00011099,2]
[345050563,1733951446461,-2292.83,0.00011099,2]
[345050564,1733951446471,-714.35,0.00011099,2]
[345050565,1733951446481,-2292.83,0.00011099,2]
[345050566,1733951446491,-2292.83,0.00011099,2]
[345050567,1733951446501,-2292.83,0.00011099,2]
[345050568,1733951446510,-2292.83,0.00011099,2]
[345050569,1733951446520,-2292.83,0.00011099,2]
[345050570,1733951446529,-2292.83,0.00011099,2]
[345050571,1733951446539,-2292.83,0.00011099,2]
[345050572,1733951446548,-2292.83,0.00011099,2]
[345050573,1733951446558,-2292.83,0.00011099,2]
[345050574,1733951446567,-2292.83,0.00011099,2]
[345050575,1733951446577,-2292.83,0.00011099,2]
[345050576,1733951446587,-2292.83,0.00011099,2]
[345050577,1733951446597,-2292.83,0.00011099,2]
[345050578,1733951446607,-2292.83,0.00011099,2]
[345050579,1733951446617,-2292.83,0.00011099,2]
[345050580,1733951446627,-2292.8685418,0.00011099,2]
[345050581,1733951446637,-1177.64,0.00011099,2]
[345050582,1733951446647,-1177.64,0.00011099,2]
[345050583,1733951446658,-1177.64,0.00011099,2]
[345050584,1733951446667,-1177.64,0.00011099,2]
[345050585,1733951446676,-1177.64,0.00011099,2]
[345050586,1733951446686,-1177.64,0.00011099,2]
[345050587,1733951446868,-1177.64,0.00011099,2]
[345050588,1733951446877,-1177.64,0.00011099,2]
[345050589,1733951446888,-1177.64,0.00011099,2]
[345050590,1733951446900,-1177.64,0.00011099,2]
[345050591,1733951446909,-1177.64,0.00011099,2]
[345050592,1733951446919,-1177.64,0.00011099,2]
[345050593,1733951446929,-1177.64,0.00011099,2]
[345050594,1733951446939,-1177.64,0.00011099,2]
[345050595,1733951446948,-1177.64,0.00011099,2]
[345050596,1733951446958,-1177.64,0.00011099,2]
[345050597,1733951446968,-249432.41133303,0.000111,2]
[345050598,1733951447294,-3750.00000001,0.000111,2]
[345050599,1733951447306,-30298.2378136,0.000111,2]
[345050600,1733951447324,-1360.0,0.000111,2]
[345050601,1733951447336,-399.66706516,0.000111,2]
[345050602,1733951447347,-1077.99002457,0.000111,2]
[345050603,1733951447366,-900.9999972,0.00011099,2]
[345050604,1733951447377,-276.6400028,0.00011099,2]
[345050605,1733951447387,-4288.04256572,0.000111,2]
[345050606,1733951447400,-253.55189218,0.000111,2]
[345050607,1733951447877,-1177.64,0.00011099,2]
[345050608,1733951447888,-598.91469539,0.00011099,2]
[345050609,1733951447901,-578.88530461,0.00011099,2]
[345050610,1733951447910,-47921.11469538,0.000111,2]
[345050611,1733951447922,-92755.38636931,0.000111,2]
[345050612,1733951447934,-1012.80615,0.000111,2]
[345050613,1733951447950,-2099.16185899,0.000111,2]
[345050614,1733951447962,-2387.97908671,0.000111,2]
[345050615,1733951447973,-7884799.42002857,0.000111,2]
[345050616,1733951447985,-1052.60675718,0.000111,2]
[345050617,1733951447996,-660.0,0.000111,2]
[345050618,1733951448015,-25343.52702358,0.000111,2]
[345050619,1733951448123,-226.49,0.00011098,2]
[345050620,1733951448134,-887.8438067,0.000111,2]
[345050621,1733951448147,-767.58,0.000111,2]
[345050622,1733951448158,-13886.79782883,0.000111,2]
[345050623,1733951448174,-15009.00000002,0.000111,2]
[345050624,1733951448185,-1324.40408396,0.000111,2]
[345050625,1733951448197,-22182.00103069,0.000111,2]
[345050626,1733951448209,-406.13213936,0.000111,2]
[345050627,1733951448221,-998.50423862,0.000111,2]
[345050628,1733951448237,-381.28266465,0.000111,2]
[345050629,1733951448249,-2776.70500011,0.000111,2]
[345050630,1733951448396,-500.0,0.00011097,2]
[345050631,1733951448406,-489.87,0.00011098,2]
[345050632,1733951448448,-10.13,0.00011098,2]
[345050633,1733951448458,-500.0,0.00011098,2]
[345050634,1733951448468,-677.0,0.000111,2]
[345050635,1733951448478,-885.69090556,0.000111,2]
[345050636,1733951448495,-495.6,0.000111,2]
[345050637,1733951448519,-500.0,0.00011098,2]
[345050638,1733951448529,-456.75,0.000111,2]
[345050639,1733951448540,-294.14193991,0.000111,2]
[345050640,1733951448552,-5643.87406333,0.000111,2]
[345050641,1733951448564,-16765.26973937,0.000111,2]
[345050642,1733951448579,-615.61146637,0.000111,2]
[345050643,1733951448600,-409.31734696,0.000111,2]
[345050644,1733951448612,-512.45714152,0.000111,2]
[345050645,1733951448623,-1100.0,0.000111,2]
[345050646,1733951448866,-440.0000011,0.00011098,2]
[345050647,1733951448879,-59.9999989,0.00011098,2]
[345050648,1733951448890,-500.0,0.00011099,2]
[345050649,1733951448940,-5.1349031,0.00011099,2]
[345050650,1733951448972,-494.8650969,0.00011099,2]
[345050651,1733951448983,-500.0,0.00011099,2]
[345050652,1733951448993,-414.82,0.00011099,2]
[345050653,1733951449003,-150579.38007281,0.000111,2]
[345050654,1733951449014,-10791.8997,0.000111,2]
[345050655,1733951449027,-15316.81291562,0.000111,2]
[345050656,1733951449038,-1078.09752212,0.000111,2]
[345050657,1733951449049,-1837.79044697,0.000111,2]
[345050658,1733951449061,-4935.0,0.000111,2]
[345050659,1733951449073,-938.77304133,0.000111,2]
[345050660,1733951449084,-8495.85635847,0.000111,2]
[345050661,1733951449097,-8236.21630598,0.000111,2]
[345050666,1733951626799,549.54,8.423e-05,2]
[345050667,1733951805449,1624.0,0.00015,60]
[345050670,1733952491456,522.06,8.219e-05,2]
[345050695,1733952631839,-250.0,9.795e-05,2]
[345050696,1733952631848,-104.71288459,9.959e-05,2]
[345050697,1733952631905,-51.50711541,9.959e-05,2]
[345050698,1733952631915,-200.0,9.983e-05,2]
[345050699,1733952631925,-212.417528,9.99e-05,2]
[345050700,1733952631935,-150.0,9.999e-05,2]
[345050701,1733952631944,-300.0,9.999e-05,2]
[345050702,1733952631954,-2472.525,0.0001,2]
[345050703,1733952631963,-11313.55035459,0.0001,2]
[345050704,1733952631983,-6969.99111196,0.0001,2]
[345050705,1733952631994,-4000.0,0.0001,2]
[345050706,1733952632006,-51302.0,0.0001,2]
[345050707,1733952632017,-25769.4446535,0.0001,2]
[345050708,1733952632028,-250.0,0.0001003,2]
[345050709,1733952632037,-166.66,0.00010066,2]
[345050710,1733952632047,-1000.0,0.00010097,2]
[345050711,1733952632057,-250.0,0.00010109,2]
[345050712,1733952632066,-746.55,0.00010113,2]
[345050713,1733952632076,-786.48,0.00010137,2]
[345050714,1733952632085,-456.79,0.0001023,2]
[345050715,1733952632095,-522.06,0.00010467,2]
[345050716,1733952632104,-415.674,0.0001055,2]
[345050717,1733952632114,-456.79,0.00010609,2]
[345050718,1733952632123,-1200.0,0.0001063,2]
[345050719,1733952632333,-1881.56554273,0.00010662,2]
[345050720,1733952632345,-3283.43445727,0.00010662,2]
[345050721,1733952632358,-1000.0,0.000108,2]
[345050722,1733952632368,-26914.89908911,0.00010954,2]
[345050723,1733952632377,-456.79,0.00010987,2]
[345050724,1733952632387,-617.6139464,0.00011,2]
[345050725,1733952632398,-1099.82320826,0.00011,2]
[345050726,1733952632407,-158.51714257,0.00011,2]
[345050727,1733952632417,-220.84772197,0.00011,2]
[345050728,1733952632426,-1073.23204714,0.00011,2]
[345050730,1733952632436,-1116.46578619,0.00011,2]
[345050732,1733952632445,-1017.968,0.00011046,2]
[345050733,1733952632454,-534.4333,0.00011067,2]
[345050735,1733952632463,-1496.0,0.00011068,2]
[345050736,1733952632472,-15923.0,0.00011068,2]
[345050737,1733952632481,-8446.0,0.00011068,2]
[345050738,1733952632491,-27251.0,0.00011068,2]
[345050739,1733952632500,-168.83101149,0.00011089,2]
[345050740,1733952632509,-168.83101149,0.0001109,2]
[345050742,1733952632518,-915.58128203,0.00011096,2]
[345050744,1733952632528,-290.37108301,0.00011097,2]
[345050746,1733952632537,-400.121206,0.00011097,2]
[345050747,1733952632546,-400.121206,0.00011097,2]
[345050748,1733952632555,-400.121206,0.00011097,2]
[345050749,1733952632565,-400.121206,0.00011097,2]
[345050750,1733952632574,-400.121206,0.00011097,2]
[345050751,1733952632583,-400.121206,0.00011097,2]
[345050752,1733952632593,-400.121206,0.00011097,2]
[345050753,1733952632602,-400.121206,0.00011097,2]
[345050754,1733952632612,-400.121206,0.00011097,2]
[345050755,1733952632621,-400.121206,0.00011097,2]
[345050756,1733952632630,-400.121206,0.00011097,3]
[345050758,1733952632641,-400.121206,0.00011097,3]
[345050760,1733952632650,-400.121206,0.00011097,3]
[345050762,1733952632659,-400.121206,0.00011097,3]
[345050764,1733952632668,-400.121206,0.00011097,3]
[345050766,1733952632678,-400.121206,0.00011097,3]